bitfinex/quotes_ETHUSD_20250721
["timestamp","ask_amount","ask_price","bid_price","bid_amount"]
[1753096572097,2.62874267,3804.1,3804.0,0.75580001]
[1753096572401,6.73174267,3804.1,3804.0,0.75580001]
[1753096572701,6.73174267,3804.1,3804.0,0.45740001]
[1753096572906,6.73174267,3804.1,3804.0,1e-08]
[1753096573123,7.20524267,3804.1,3804.0,1e-08]
[1753096573285,5.62874267,3804.1,3804.0,1e-08]
[1753096573487,9.73174267,3804.1,3804.0,1e-08]
[1753096573690,6.86294267,3804.1,3804.0,0.45740001]
[1753096574086,6.86294267,3804.1,3804.0,1e-08]
[1753096575221,6.86294267,3804.1,3804.0,0.45740001]
[1753096577424,6.86294267,3804.1,3804.0,1e-08]
[1753096578296,10.33644267,3804.1,3804.0,1e-08]
[1753096578500,9.86194267,3804.1,3804.0,0.45740001]
[1753096578828,6.86194267,3804.1,3804.0,0.45740001]
[1753096579127,4.102,3804.1,3804.0,1.21320001]
[1753096579295,0.1312,3804.4,3804.0,4.22620972]
[1753096579530,4.102,3804.3,3804.1,0.4574]
[1753096579698,4.102,3804.4,3804.1,3.08613528]
[1753096579899,4.102,3804.4,3804.1,2.62873528]
[1753096580103,4.102,3804.4,3804.2,0.4574]
[1753096580303,4.102,3804.4,3804.3,0.39731353]
[1753096580727,4.102,3804.4,3804.3,0.85471353]
[1753096581387,4.102,3804.4,3804.3,0.4574]
[1753096582216,4.101,3804.5,3804.3,0.4574]
[1753096582408,4.101,3804.7,3804.4,0.7535]
[1753096582604,0.1312,3805.0,3804.4,3.38203431]
[1753096582805,4.101,3804.9,3804.5,3.08585363]
[1753096583004,4.101,3804.9,3804.6,0.8570839]
[1753096583397,4.101,3804.9,3804.7,0.4574]
[1753096583589,4.101,3804.9,3804.6,0.3996839]
[1753096583919,4.101,3804.9,3804.5,2.62845363]
[1753096583920,6.72920609,3804.9,3804.4,0.7535]
[1753096584122,2.62832719,3804.8,3804.4,0.7535]
[1753096584320,4.101,3804.7,3804.4,0.7535]
[1753096585096,4.101,3804.7,3804.4,1.2109]
[1753096585625,0.1312,3805.0,3804.5,0.4574]
[1753096585847,2.75932241,3805.0,3804.6,0.4574]
[1753096586051,6.7282062,3804.9,3804.6,0.4574]
[1753096586252,2.62826405,3804.8,3804.6,0.4574]
[1753096586755,6.72820984,3804.9,3804.4,0.7535]
[1753096588851,6.72820984,3804.9,3804.6,0.4574]
[1753096589253,6.72820984,3804.9,3804.4,0.7535]
[1753096589456,6.72820984,3804.9,3804.5,0.4574]
[1753096589821,6.72820984,3804.9,3804.6,0.4574]
[1753096590031,4.1,3804.9,3804.6,0.4574]
[1753096590252,0.1312,3805.0,3804.6,0.13421]
[1753096590420,4.099,3804.8,3804.7,0.4574]
[1753096591369,4.099,3804.8,3804.7,3.08572812]
[1753096591576,4.099,3804.8,3804.7,0.4574]
[1753096591751,0.002,3805.1,3804.7,0.4574]
[1753096591752,4.099,3805.0,3804.7,0.4574]
[1753096591945,4.099,3805.0,3804.8,0.33511854]
[1753096592268,4.099,3805.0,3804.9,0.4574]
[1753096592474,4.099,3805.0,3804.6,0.26541]
[1753096592873,4.099,3805.0,3804.7,0.4574]
[1753096593569,6.72714239,3805.0,3804.7,0.4574]
[1753096593733,6.72714239,3805.0,3804.6,0.1312]
[1753096593939,4.099,3805.0,3804.7,0.4574]
[1753096594534,6.72714982,3805.0,3804.7,0.4574]
[1753096595072,4.099,3805.0,3804.4,0.7535]
[1753096595273,7.33187706,3805.0,3804.4,0.8847]
[1753096595638,2.62826229,3804.8,3804.4,0.8847]
[1753096595833,4.098,3804.7,3804.4,0.8847]
[1753096596035,6.72633239,3804.7,3804.4,0.1312]
[1753096596460,2.62840085,3804.6,3804.2,0.1312]
[1753096596643,4.098,3804.5,3804.2,0.1312]
[1753096598066,4.098,3804.5,3804.2,0.5886]
[1753096600167,6.72646904,3804.5,3804.2,0.1312]
[1753096600362,2.62853538,3804.4,3804.2,0.1312]
[1753096600562,4.097,3804.3,3804.2,0.1312]
[1753096600966,4.097,3804.3,3804.0,1e-08]
[1753096601768,2.62871789,3804.2,3804.0,1e-08]
[1753096602293,2.62874267,3804.1,3804.0,1e-08]
[1753096602783,6.72574267,3804.1,3804.0,1e-08]
[1753096603200,7.15674267,3804.1,3804.0,1e-08]
[1753096604397,10.15674267,3804.1,3804.0,1e-08]
[1753096604609,10.98884267,3804.1,3804.0,1e-08]
[1753096607314,17.51150873,3804.1,3804.0,1e-08]
[1753096611718,13.41450873,3804.1,3804.0,1e-08]
[1753096611901,17.51050873,3804.1,3804.0,1e-08]
[1753096614337,32.01050873,3804.1,3804.0,1e-08]
[1753096614536,32.212257,3804.1,3804.0,1e-08]
[1753096616720,26.23959094,3804.1,3804.0,1e-08]
[1753096616919,28.116257,3804.1,3804.0,1e-08]
[1753096617149,32.211257,3804.1,3804.0,1e-08]
[1753096617521,27.91450873,3804.1,3804.0,1e-08]
[1753096617726,32.00950873,3804.1,3804.0,1e-08]
[1753096617933,27.91450873,3804.1,3804.0,1e-08]
[1753096618234,32.00950873,3804.1,3804.0,1e-08]
[1753096619854,5.62874267,3804.1,3804.0,1e-08]
[1753096620011,5.62901911,3803.7,3803.6,1.21270001]
[1753096620204,9.72401911,3803.7,3803.6,1.21270001]
[1753096620744,2.62875359,3804.1,3803.6,1.21270001]
[1753096621038,0.1312,3803.7,3803.6,0.74580001]
[1753096621218,4.2262,3803.7,3803.6,0.74580001]
[1753096621414,4.2262,3803.7,3803.6,1.21270001]
[1753096623070,2.62908823,3803.6,3803.5,0.001]
[1753096623450,5.62908823,3803.6,3803.5,0.001]
[1753096624582,10.15408823,3803.6,3803.5,0.001]
[1753096625068,10.70408823,3803.6,3803.5,0.001]
[1753096626783,6.17929561,3803.3,3803.2,0.001]
[1753096626987,16.99676167,3803.3,3803.2,1e-08]
[1753096627140,20.54054451,3803.3,3803.2,1e-08]
[1753096627849,2.62984878,3802.5,3801.9,0.001]
[1753096628043,10.27384878,3802.5,3801.9,0.001]
[1753096628229,25.20484878,3802.5,3801.9,0.001]
[1753096629232,25.96174878,3802.5,3802.4,1e-08]
[1753096631149,7.36774878,3802.5,3802.4,1e-08]
[1753096631346,11.46074878,3802.5,3802.4,1e-08]
[1753096631775,25.96074878,3802.5,3802.4,1e-08]
[1753096632135,22.06761521,3802.5,3802.4,1e-08]
[1753096632364,26.16061521,3802.5,3802.4,1e-08]
[1753096635352,22.06761521,3802.5,3802.4,1e-08]
[1753096635672,24.97974878,3802.5,3802.4,1e-08]
[1753096635857,20.12984878,3802.5,3802.4,1e-08]
[1753096636088,24.22284878,3802.5,3802.4,1e-08]
[1753096636992,17.67984878,3802.5,3802.4,1e-08]
[1753096637170,2.62976889,3802.7,3802.4,0.46980001]
[1753096637370,4.093,3802.6,3802.5,0.4698]
[1753096637684,7.093,3802.6,3802.5,0.4698]
[1753096637880,3.0,3802.6,3802.5,0.4698]
[1753096638079,4.093,3802.6,3802.5,0.85436426]
[1753096638311,2.62915735,3803.5,3802.5,0.85356426]
[1753096638513,0.1312,3802.8,3802.7,3.37545575]
[1753096639013,8.94067895,3804.2,3803.2,0.7458]
[1753096639169,0.1312,3803.3,3803.2,3.37516474]
[1753096640338,0.1312,3803.3,3803.2,3.84496474]
[1753096642419,1.271087,3806.0,3803.2,3.84496474]
[1753096642420,2.63062073,3804.3,3803.6,0.7458]
[1753096642579,4.2232,3804.2,3803.7,0.4698]
[1753096642914,4.2232,3804.2,3803.8,2.62894999]
[1753096643279,4.2232,3804.2,3803.9,3.09867321]
[1753096643476,0.1312,3804.2,3804.0,0.4698]
[1753096643675,0.1312,3804.2,3804.1,0.7458]
[1753096643871,0.1312,3804.2,3804.1,3.37454267]
[1753096644106,0.1312,3804.2,3804.1,4.49166419]
[1753096644908,0.002,3804.3,3804.2,2.62867357]
[1753096645085,0.002,3804.3,3804.2,3.84427357]
[1753096646430,0.002,3804.3,3804.2,3.8705603]
[1753096646926,0.002,3804.3,3804.2,3.84427357]
[1753096647125,0.002,3804.3,3804.2,4.59571408]
[1753096652545,0.002,3804.3,3804.2,4.56942735]
[1753096652841,0.002,3804.3,3804.2,4.59571408]
[1753096654000,0.002,3804.3,3804.2,4.56942735]
[1753096654614,1e-08,3804.3,3804.2,14.20487625]
[1753096655032,1e-08,3804.3,3804.2,17.20487625]
[1753096655304,1e-08,3804.3,3804.2,23.51287625]
[1753096655619,0.002,3805.1,3804.9,3.55]
[1753096655820,0.002,3805.1,3805.0,7.91022242]
[1753096656004,1e-08,3805.1,3805.0,8.35374122]
[1753096656720,1e-08,3805.1,3805.0,9.09954122]
[1753096656919,1e-08,3805.1,3805.0,12.09954122]
[1753096660043,1e-08,3805.1,3805.0,8.01154122]
[1753096660339,1e-08,3805.1,3805.0,12.09754122]
[1753096662069,1e-08,3805.1,3805.0,7.46154122]
[1753096662285,1e-08,3805.1,3805.0,11.54754122]
[1753096662482,1e-08,3805.1,3805.0,7.46154122]
[1753096662686,1e-08,3805.1,3805.0,11.54754122]
[1753096663077,1e-08,3805.1,3805.0,11.54654122]
[1753096663764,1e-08,3805.1,3805.0,7.46154122]
[1753096663973,1e-08,3805.1,3805.0,11.54654122]
[1753096664784,1e-08,3805.1,3805.0,7.59274122]
[1753096664983,1e-08,3805.1,3805.0,11.67774122]
[1753096665896,1e-08,3805.1,3805.0,7.59274122]
[1753096666095,1e-08,3805.1,3805.0,11.67674122]
[1753096667786,1e-08,3805.1,3805.0,8.67674122]
[1753096670270,1e-08,3805.1,3805.0,4.59274122]
[1753096670476,1e-08,3805.1,3805.0,8.67674122]
[1753096670655,1e-08,3805.1,3805.0,8.67574122]
[1753096672615,1e-08,3805.1,3805.0,4.59274122]
[1753096672765,1e-08,3805.1,3805.0,8.70202242]
[1753096672963,1e-08,3805.1,3805.0,8.67574122]
[1753096673193,1e-08,3805.1,3805.0,14.6386768]
[1753096673915,1e-08,3805.1,3805.0,8.20594122]
[1753096674095,1e-08,3805.1,3805.0,8.66624122]
[1753096674596,1e-08,3805.1,3805.0,4.58324122]
[1753096674803,1e-08,3805.1,3805.0,8.66624122]
[1753096675502,1e-08,3805.1,3805.0,8.20594122]
[1753096676019,1e-08,3805.1,3805.0,8.20494122]
[1753096676404,1e-08,3805.1,3805.0,4.12294122]
[1753096676707,1e-08,3805.1,3805.0,8.20494122]
[1753096677402,1e-08,3805.1,3805.0,8.66524122]
[1753096677576,1e-08,3805.1,3805.0,4.58324122]
[1753096677777,1e-08,3805.1,3805.0,8.69152242]
[1753096678092,1e-08,3805.1,3805.0,8.66524122]
[1753096679211,1e-08,3805.1,3805.0,4.58324122]
[1753096679415,1e-08,3805.1,3805.0,8.69152242]
[1753096679625,1e-08,3805.1,3805.0,4.58324122]
[1753096679912,1e-08,3805.1,3805.0,8.69152242]
[1753096680228,1e-08,3805.1,3805.0,8.66524122]
[1753096681692,1e-08,3805.1,3805.0,8.66424122]
[1753096681892,1e-08,3805.1,3805.0,9.21424122]
[1753096682094,1e-08,3805.1,3805.0,12.21424122]
[1753096682504,1e-08,3805.4,3805.3,5.62791369]
[1753096682707,1e-08,3805.4,3805.3,18.41636327]
[1753096682903,1e-08,3805.4,3805.3,18.52128414]
[1753096683081,1e-08,3805.4,3805.3,18.98158414]
[1753096692441,0.002,3805.9,3805.8,2.62756844]
[1753096692643,0.002,3805.9,3805.8,6.73284412]
[1753096692844,0.002,3805.9,3805.8,8.38157088]
[1753096693018,0.002,3805.9,3805.8,8.4864952]
[1753096693932,0.002,3805.9,3805.8,8.0365952]
[1753096695745,0.002,3805.9,3805.8,8.0355952]
[1753096699566,0.002,3805.9,3805.8,3.9575952]
[1753096699765,0.002,3805.9,3805.8,8.06087088]
[1753096700058,0.002,3805.9,3805.8,8.0345952]
[1753096700624,0.002,3805.9,3805.8,8.4844952]
[1753096701526,0.002,3805.9,3805.8,8.0345952]
[1753096702364,0.002,3805.9,3805.8,3.9575952]
[1753096702547,0.83,3805.8,3805.0,0.001]
[1753096702760,3.4577715,3805.6,3805.0,0.001]
[1753096703071,3.4577715,3805.6,3805.1,2.62805182]
[1753096703072,0.83,3805.6,3805.1,2.62805182]
[1753096703223,3.45772869,3805.6,3805.1,4.076]
[1753096703424,0.7774,3805.4,3805.1,4.076]
[1753096703650,0.4471,3805.3,3805.1,6.70403895]
[1753096704362,0.4471,3805.3,3805.2,4.076]
[1753096706268,0.4471,3805.3,3805.1,4.077]
[1753096706767,0.4471,3805.3,3805.0,0.001]
[1753096707064,0.8306,3805.2,3805.1,4.076]
[1753096707269,1.2777,3805.2,3805.0,0.001]
[1753096707473,1.2777,3805.1,3805.0,0.001]
[1753096707686,3.90575182,3805.1,3805.0,0.001]
[1753096708773,1.2777,3805.1,3805.0,0.001]
[1753096710549,0.8306,3805.1,3805.0,0.001]
[1753096710842,1.2777,3805.1,3805.0,0.001]
[1753096711040,1.2777,3805.1,3805.0,2.62912089]
[1753096711041,0.8306,3805.1,3805.0,2.62912089]
[1753096712372,1.2087,3805.4,3805.0,0.001]
[1753096712676,0.4471,3805.3,3805.0,0.001]
[1753096712880,0.4471,3805.3,3805.2,2.62796978]
[1753096714175,0.4471,3805.3,3805.1,6.70304152]
[1753096714340,0.7616,3805.4,3805.1,6.70304152]
[1753096714540,0.4471,3805.3,3805.1,6.70304152]
[1753096714774,0.7616,3805.4,3805.1,6.70304152]
[1753096714988,0.4471,3805.2,3805.1,6.70304152]
[1753096716186,0.7627,3805.1,3805.0,0.001]
[1753096716579,1.2098,3805.1,3805.0,0.001]
[1753096716904,3.83785182,3805.1,3805.0,0.001]
[1753096718198,1.2477,3805.4,3805.0,0.001]
[1753096718367,0.8006,3805.4,3805.0,0.001]
[1753096718595,0.4471,3805.1,3805.0,2.62912089]
[1753096718876,0.4471,3805.1,3805.0,3.1259202]
[1753096719076,0.4471,3805.1,3805.0,0.001]
[1753096719274,1.2093,3805.1,3805.0,0.001]
[1753096721395,1.2093,3805.1,3805.0,2.62912089]
[1753096721573,0.7913,3805.5,3805.0,0.001]
[1753096721757,1.2197,3805.5,3805.2,2.62798139]
[1753096721956,1.2197,3805.5,3805.0,0.001]
[1753096722179,1.2197,3805.5,3805.3,2.62787024]
[1753096722868,1.2197,3805.5,3805.2,6.70196347]
[1753096723181,1.2197,3805.5,3805.2,4.074]
[1753096723371,0.7913,3805.5,3805.2,4.074]
[1753096723569,0.4284,3805.4,3805.2,4.074]
[1753096724090,0.002,3805.9,3805.8,2.62756844]
[1753096724291,0.002,3805.9,3805.8,6.72784412]
[1753096724491,0.002,3806.4,3805.8,6.72784412]
[1753096724492,0.002,3806.4,3806.1,2.62736134]
[1753096724792,0.002,3806.4,3806.1,6.72663495]
[1753096724995,0.002,3806.4,3806.1,7.70563495]
[1753096725158,0.002,3806.4,3806.3,2.62722328]
[1753096725354,0.002,3806.4,3806.3,7.47229551]
[1753096725557,0.002,3806.4,3806.3,7.87502328]
[1753096727301,0.002,3806.4,3806.3,2.62722328]
[1753096727507,0.002,3806.4,3806.3,6.72649551]
[1753096727692,0.002,3806.4,3806.3,7.7793612]
[1753096727856,0.002,3806.4,3806.3,7.75308897]
[1753096728060,0.002,3806.4,3806.3,7.88428897]
[1753096731696,0.002,3806.4,3806.3,3.81128897]
[1753096732003,0.002,3806.4,3806.3,4.2022]
[1753096732170,0.4304,3806.4,3806.3,4.2022]
[1753096732806,0.4304,3806.4,3806.3,4.071]
[1753096735917,3.05755426,3806.4,3806.3,4.071]
[1753096736599,0.4304,3806.4,3806.3,4.071]
[1753096736801,0.4304,3806.4,3806.3,4.07]
[1753096737467,3.05755426,3806.4,3806.3,4.07]
[1753096737667,0.4304,3806.4,3806.3,4.07]
[1753096739174,3.05755426,3806.4,3806.3,4.07]
[1753096739505,2.62724905,3806.3,3806.1,4.07]
[1753096739707,0.4284,3806.2,3806.1,4.07]
[1753096740281,1.2098,3806.2,3805.8,0.1312]
[1753096740600,2.62746274,3806.0,3805.8,0.1312]
[1753096740784,2.62746274,3806.0,3805.9,4.07]
[1753096741124,0.4284,3806.0,3805.8,0.1312]
[1753096741313,0.4284,3806.0,3805.9,4.07]
[1753096741478,0.7814,3806.2,3805.9,4.07]
[1753096741672,2.62725078,3806.3,3805.9,4.07]
[1753096741876,0.002,3806.4,3805.9,6.69749167]
[1753096742081,0.002,3806.4,3805.9,4.07]
[1753096742307,0.4284,3806.3,3805.9,4.07]
[1753096742504,0.002,3806.4,3805.9,4.53302]
[1753096742703,0.4304,3806.4,3806.0,0.1312]
[1753096742883,0.4284,3806.3,3806.0,4.2002]
[1753096743388,0.4284,3806.3,3806.0,0.1312]
[1753096743619,3.05574614,3806.2,3806.1,4.069]
[1753096744185,0.4284,3806.2,3806.1,4.069]
[1753096744517,2.62741928,3806.1,3806.0,4.069]
[1753096744813,0.4284,3806.1,3806.0,4.069]
[1753096745023,3.05576134,3806.1,3806.0,4.069]
[1753096745318,3.05576134,3806.1,3805.7,0.1312]
[1753096745612,0.4284,3806.1,3806.0,4.069]
[1753096745814,3.0557775,3806.1,3805.7,0.1312]
[1753096746019,0.1312,3806.3,3805.7,0.1312]
[1753096746313,3.05585908,3806.0,3805.8,4.069]
[1753096746522,0.1312,3806.3,3805.8,4.069]
[1753096746698,2.62731685,3806.2,3805.8,4.069]
[1753096747294,0.1312,3806.3,3805.8,4.069]
[1753096747625,2.62737075,3806.1,3805.8,4.069]
[1753096747825,3.05571992,3806.2,3805.8,4.069]
[1753096748188,0.1312,3806.3,3805.8,4.498]
[1753096748521,2.75843581,3806.3,3805.8,4.498]
[1753096749292,3.18683581,3806.3,3805.8,4.069]
[1753096749502,2.75843581,3806.3,3805.8,4.069]
[1753096749816,0.1312,3806.3,3805.8,4.498]
[1753096750022,0.1312,3806.3,3805.8,7.12554051]
[1753096750226,0.4284,3806.3,3805.9,4.53092]
[1753096750401,0.4284,3806.2,3805.9,4.068]
[1753096751201,0.4284,3806.1,3805.7,0.1312]
[1753096751411,0.4284,3806.1,3805.8,4.068]
[1753096751627,0.4284,3806.1,3805.7,2.75882623]
[1753096751803,0.1312,3806.3,3805.8,4.068]
[1753096752003,2.7584239,3806.3,3805.9,4.068]
[1753096752511,0.1312,3806.3,3806.0,4.068]
[1753096753106,0.1312,3806.3,3806.0,6.69539305]
[1753096753306,0.002,3806.4,3806.0,7.16269305]
[1753096753630,0.002,3806.4,3806.0,4.5353]
[1753096754105,0.002,3806.4,3806.0,7.16272179]
[1753096755110,0.002,3806.4,3806.1,2.62735602]
[1753096755514,0.002,3806.4,3806.0,7.16272618]
[1753096755841,0.002,3806.4,3806.0,4.5353]
[1753096756015,0.002,3806.4,3806.0,7.1627213]
[1753096756517,0.002,3806.4,3806.0,4.068]
[1753096756721,0.002,3806.4,3806.1,0.4673]
[1753096756919,0.002,3806.4,3806.1,3.09463167]
[1753096757121,0.002,3806.4,3806.1,0.4673]
[1753096757325,0.002,3806.4,3806.2,2.62728456]
[1753096757640,0.002,3806.4,3806.3,6.69422328]
[1753096757828,0.002,3806.4,3806.3,4.067]
[1753096758226,0.002,3806.4,3806.3,7.71511492]
[1753096758424,0.002,3806.4,3806.3,5.55519164]
[1753096758607,0.002,3806.4,3806.3,4.067]
[1753096758939,1.2071,3806.4,3806.3,4.067]
[1753096759336,1.2071,3806.4,3806.2,4.067]
[1753096759728,0.7573,3806.4,3806.2,4.067]
[1753096760111,0.002,3806.4,3806.2,4.067]
[1753096761161,0.002,3806.4,3806.2,6.69427293]
[1753096761737,0.002,3806.4,3806.3,2.62722328]
[1753096762138,0.002,3806.4,3806.2,7.16157076]
[1753096762443,0.002,3806.4,3806.3,2.62722328]
[1753096762631,0.002,3806.4,3806.2,7.16156285]
[1753096762834,0.002,3806.4,3806.3,2.62722328]
[1753096763148,0.002,3806.4,3806.3,4.09969006]
[1753096763715,0.002,3806.4,3806.3,10.80867206]
[1753096764041,0.002,3806.4,3806.3,14.33239983]
[1753096764542,0.002,3806.4,3806.3,18.39839983]
[1753096766451,0.002,3806.4,3806.3,18.39739983]
[1753096769540,0.002,3806.4,3806.3,8.36921783]
[1753096769849,0.002,3806.4,3806.3,12.43321783]
[1753096770253,0.002,3806.4,3806.3,7.81921783]
[1753096770418,0.002,3806.4,3806.3,11.88321783]
[1753096773153,1e-08,3806.5,3806.4,6.17715426]
[1753096773353,1e-08,3806.5,3806.4,15.38701531]
[1753096773556,1e-08,3806.8,3806.7,6.92274722]
[1753096773718,0.002,3807.0,3806.9,6.92260921]
[1753096773719,1e-08,3807.0,3806.9,6.92260921]
[1753096774049,0.002,3807.6,3807.1,6.92247121]
[1753096774250,0.002,3807.6,3807.1,17.28140099]
[1753096774459,0.002,3807.6,3807.1,19.47684109]
[1753096774972,0.002,3807.6,3807.1,9.76211131]
[1753096775168,0.002,3807.6,3807.1,12.76211131]
[1753096775534,0.002,3807.6,3807.1,13.31211131]
[1753096776537,1e-08,3807.2,3807.1,13.31211131]
[1753096779141,1e-08,3807.2,3807.1,13.31111131]
[1753096779337,1e-08,3807.2,3807.1,13.65187796]
[1753096780042,0.002,3808.0,3807.5,2.62639527]
[1753096780043,1e-08,3808.0,3807.5,2.62639527]
[1753096780237,1e-08,3808.0,3807.9,12.88510138]
[1753096780450,1e-08,3808.0,3807.9,17.07730138]
[1753096780756,1e-08,3808.0,3807.9,17.54460138]
[1753096781160,1e-08,3808.0,3807.9,17.67833908]
[1753096781947,1e-08,3808.5,3808.4,0.55]
[1753096782149,1e-08,3808.5,3808.4,17.36717129]
[1753096782357,1e-08,3808.5,3808.4,18.52871355]
[1753096788086,1e-08,3808.5,3808.4,18.52771355]
[1753096789987,2.2443393,3810.1,3808.4,18.52771355]
[1753096789988,0.7552,3810.0,3809.4,2.62507591]
[1753096790189,0.4743,3809.6,3809.5,4.059]
[1753096790586,0.4743,3809.6,3809.1,2.6252768]
[1753096790587,0.8083,3809.5,3809.1,2.6252768]
[1753096790755,0.8083,3809.5,3809.4,0.1312]
[1753096790958,1.2826,3809.5,3809.4,4.1902]
[1753096791171,1.2826,3809.5,3809.4,4.1892]
[1753096792087,1.2826,3809.5,3809.4,6.81428531]
[1753096792587,1.2826,3809.5,3809.4,4.1892]
[1753096793292,1.2826,3809.5,3809.4,6.81428531]
[1753096794160,1.2826,3809.5,3809.4,4.1892]
[1753096794494,1.2826,3809.5,3809.4,6.81428531]
[1753096794495,0.78736161,3809.5,3809.4,6.81428531]
[1753096795271,1.26166161,3809.5,3809.4,0.1312]
[1753096795478,1.26166161,3809.5,3809.4,4.1882]
[1753096796287,1.26166161,3809.5,3809.4,0.1312]
[1753096796491,1.26166161,3809.5,3809.4,4.1882]
[1753096796687,1.26166161,3809.5,3809.4,0.1312]
[1753096796994,1.26166161,3809.5,3809.4,4.1882]
[1753096798099,0.78736161,3809.5,3809.4,4.1882]
[1753096798490,1.26166161,3809.5,3809.4,0.1312]
[1753096798803,1.26166161,3809.5,3809.4,4.1882]
[1753096798998,1.26166161,3809.5,3809.4,0.1312]
[1753096799203,1.26166161,3809.5,3809.3,4.057]
[1753096799408,1.26166161,3809.5,3809.4,2.62508531]
[1753096799610,4.8709993,3810.1,3809.4,2.62508531]
[1753096799611,0.8328,3810.0,3809.8,2.62478571]
[1753096799781,1.3071,3810.0,3809.8,4.057]
[1753096799972,0.4743,3809.9,3809.8,4.1882]
[1753096800597,0.8328,3810.0,3809.8,4.1882]
[1753096800899,1.3071,3810.0,3809.9,4.057]
[1753096801101,0.8328,3810.0,3809.9,6.6817408]
[1753096801410,0.8328,3810.0,3809.9,4.057]
[1753096801793,1.3071,3810.0,3809.9,4.057]
[1753096802685,1.3071,3810.0,3809.9,6.6817408]
[1753096803065,1.3071,3810.0,3809.9,4.057]
[1753096803291,1.3071,3810.0,3809.9,4.056]
[1753096803703,0.8328,3810.0,3809.9,6.6807408]
[1753096803879,2.2463393,3810.1,3810.0,2.62467191]
[1753096804401,2.2463393,3810.1,3810.0,2.75587191]
[1753096804772,2.2463393,3810.1,3810.0,3.09291862]
[1753096805194,11.2095213,3810.1,3809.4,0.3586845]
[1753096805388,0.8093,3809.5,3809.4,0.3586845]
[1753096805587,1.2836,3810.0,3809.6,2.6249363]
[1753096805811,0.8093,3810.0,3809.5,2.62499578]
[1753096806094,2.62487859,3809.7,3809.4,0.3586845]
[1753096806310,0.4743,3809.6,3809.4,0.3586845]
[1753096806621,0.7782,3809.5,3809.4,0.3586845]
[1753096806785,1.2525,3809.5,3809.4,0.3586845]
[1753096806984,3.8775164,3809.5,3809.4,0.3586845]
[1753096812328,1.2525,3809.5,3809.4,0.3586845]
[1753096812508,3.8775164,3809.5,3809.4,0.3586845]
[1753096815835,1.2525,3809.5,3809.4,0.3586845]
[1753096816040,3.8775164,3809.5,3809.4,0.3586845]
[1753096816232,0.1312,3809.4,3809.0,0.17847321]
[1753096816403,0.4473,3809.3,3809.0,0.17847321]
[1753096818042,0.4473,3809.3,3809.0,2.80383277]
[1753096818402,0.4473,3809.3,3809.0,0.17847321]
[1753096818809,0.4473,3809.3,3809.0,2.80382138]
[1753096819011,0.1312,3809.4,3809.1,2.62528913]
[1753096819216,0.7782,3809.5,3809.1,2.75649206]
[1753096819504,0.1312,3809.7,3809.2,0.55866436]
[1753096819812,0.4473,3809.7,3809.5,2.62496803]
[1753096820728,0.4473,3809.7,3809.3,2.78260576]
[1753096820729,0.4473,3809.7,3809.6,2.6249475]
[1753096821041,0.4473,3809.7,3809.4,2.62507267]
[1753096821245,0.4473,3809.6,3809.3,0.1312]
[1753096821450,0.7728,3809.5,3809.3,4.124]
[1753096821658,0.7728,3809.5,3809.2,4.123]
[1753096821806,0.4473,3809.4,3809.1,0.1312]
[1753096822007,0.4473,3809.4,3809.2,4.123]
[1753096822205,0.7728,3809.5,3809.2,4.123]
[1753096822406,0.4473,3809.3,3809.2,4.123]
[1753096822607,0.4473,3809.3,3809.2,6.74822314]
[1753096823037,0.4473,3809.3,3809.2,4.123]
[1753096823653,0.4473,3809.3,3809.2,6.74822314]
[1753096823937,0.7728,3809.5,3809.3,2.62515188]
[1753096824614,1.2201,3809.5,3809.2,6.74820742]
[1753096824808,0.4473,3809.4,3809.2,4.123]
[1753096825008,0.4473,3809.3,3809.0,0.17847321]
[1753096825839,3.5290184,3809.5,3809.0,0.17847321]
[1753096826054,0.4473,3809.2,3809.0,0.17847321]
[1753096826638,0.4473,3809.1,3809.0,0.17847321]
[1753096826835,0.4473,3809.4,3809.1,2.62528228]
[1753096827254,0.4473,3809.4,3809.0,2.80380989]
[1753096827815,0.4473,3809.4,3809.0,0.17847321]
[1753096828014,0.904,3809.5,3809.0,0.64749413]
[1753096828247,0.904,3809.5,3809.2,2.62516684]
[1753096828426,0.7728,3809.5,3809.2,6.73922066]
[1753096828753,0.9033,3809.8,3809.4,2.62507554]
[1753096828952,0.9033,3809.8,3809.2,4.5812]
[1753096829257,0.9033,3809.8,3809.3,2.62510075]
[1753096829459,0.9033,3809.8,3809.4,2.62508431]
[1753096829633,0.4473,3809.7,3809.2,2.62518166]
[1753096829843,0.4473,3809.7,3809.3,6.73811995]
[1753096830052,0.4473,3809.6,3809.3,6.73811995]
[1753096830259,0.4473,3809.5,3809.4,2.62508524]
[1753096830563,0.4473,3809.5,3809.3,2.62512836]
[1753096830772,0.9033,3809.8,3809.5,2.62501112]
[1753096831272,0.4473,3809.7,3809.4,2.62507824]
[1753096831460,0.9033,3809.8,3809.4,2.62507824]
[1753096831754,0.4473,3809.7,3809.4,2.62507824]
[1753096831941,0.9033,3809.8,3809.4,2.62508436]
[1753096832147,0.4473,3809.6,3809.4,2.62508436]
[1753096832547,0.4473,3809.5,3809.3,2.6251323]
[1753096833045,0.4473,3809.5,3809.2,4.113]
[1753096833249,0.9033,3809.8,3809.3,2.62512661]
[1753096833450,0.4473,3809.4,3809.3,2.62512661]
[1753096835084,0.9033,3809.8,3809.3,2.62512661]
[1753096835363,1.2805,3809.4,3809.3,4.105]
[1753096836476,0.8332,3809.4,3809.3,6.73015422]
[1753096836655,0.1312,3809.8,3809.3,6.73015422]
[1753096836656,0.783,3809.7,3809.3,6.73015422]
[1753096836964,0.4473,3809.6,3809.3,4.105]
[1753096837126,0.4473,3809.6,3809.3,6.73013295]